fUSD/lending_fUSD_20250503
["ID","MTS","AMOUNT","RATE_DAILY","PERIOD"]
[359763643,1746309327762,150.050406,0.0003,32]
[359763644,1746309366591,155.77,0.00018875,2]
[359763645,1746309385507,324.33679757,0.00018838,2]
[359763646,1746309385533,925.02320243,0.00018838,2]
[359763648,1746309445209,240.0,0.000294,30]
[359763652,1746309588791,436.59,0.00018817,2]
[359763653,1746309603151,320.84,0.00019313,2]
[359763654,1746309625453,831.41,0.00018817,2]
[359763655,1746309629860,150.0,0.00032867,60]
[359763658,1746309827630,7486.13679757,0.00018823,2]
[359763659,1746309827650,4820.51320243,0.00018823,2]
[359763660,1746309840730,175.56,0.00015059,2]
[359763661,1746309894724,160.28,0.00018824,2]
[359763662,1746309900400,1158.33,0.00018819,2]
[359763663,1746309910280,2367.0,0.00022,90]
[359763664,1746309953219,150.0,0.00018798,2]
[359763665,1746309955385,1500.0,0.00019178,2]
[359763666,1746309985526,150.050407,0.000328,60]
[359763668,1746310021195,250.0,0.00018806,7]
[359763669,1746310024839,155.66344872,0.00019484,2]
[359763677,1746310064821,300.0,0.00027397,30]
[359763678,1746310102808,250.0,0.00018805,2]
[359763680,1746310173108,500.0,0.00019856,120]
[359763681,1746310195685,182.6,0.00018789,2]
[359763709,1746310231762,-629.68015107,0.0001956,2]
[359763711,1746310231772,-250.0,0.00019561,2]
[359763713,1746310231782,-200.0,0.00019562,2]
[359763714,1746310231791,-300.0,0.00019562,2]
[359763716,1746310231803,-300.0,0.00019562,2]
[359763718,1746310231813,-1200.0,0.00019562,2]
[359763719,1746310231822,-300.0,0.00019562,2]
[359763721,1746310231831,-200.0,0.00019563,2]
[359763722,1746310231841,-99327.51864154,0.00019563,2]
[359763724,1746310231851,-207.4,0.00019573,2]
[359763726,1746310231860,-850.0,0.00019584,2]
[359763728,1746310231869,-450.0,0.00019585,2]
[359763729,1746310231878,-450.0,0.00019585,2]
[359763731,1746310231888,-450.0,0.00019585,2]
[359763733,1746310231897,-450.0,0.00019585,2]
[359763734,1746310231907,-589.08,0.00019585,2]
[359763736,1746310231916,-450.0,0.00019585,2]
[359763738,1746310231926,-450.0,0.00019585,2]
[359763739,1746310231935,-450.0,0.00019585,2]
[359763741,1746310231945,-450.0,0.00019585,2]
[359763743,1746310231954,-774.44,0.00019585,2]
[359763744,1746310231963,-450.0,0.00019585,2]
[359763745,1746310231973,-450.0,0.00019585,2]
[359763746,1746310231982,-450.0,0.00019585,2]
[359763747,1746310231993,-450.0,0.00019585,2]
[359763748,1746310232003,-628.4,0.00019585,2]
[359763750,1746310232012,-450.0,0.00019585,2]
[359763751,1746310232021,-482.22,0.00019585,2]
[359763753,1746310232030,-450.0,0.00019585,2]
[359763755,1746310232040,-450.0,0.00019585,2]
[359763758,1746310232050,-450.0,0.00019585,2]
[359763760,1746310232060,-450.0,0.00019585,2]
[359763761,1746310232070,-450.0,0.00019585,2]
[359763763,1746310232079,-1792.25,0.00019585,2]
[359763765,1746310232088,-450.0,0.00019585,2]
[359763767,1746310232098,-450.0,0.00019585,2]
[359763769,1746310232108,-450.0,0.00019585,2]
[359763771,1746310232117,-1095.82,0.00019585,2]
[359763773,1746310232126,-450.0,0.00019585,2]
[359763774,1746310232135,-450.0,0.00019585,2]
[359763776,1746310232144,-939.8,0.00019585,2]
[359763778,1746310232154,-450.0,0.00019585,2]
[359763780,1746310232163,-450.0,0.00019585,2]
[359763782,1746310232173,-450.0,0.00019585,2]
[359763784,1746310232182,-450.0,0.00019585,2]
[359763786,1746310232191,-450.0,0.00019585,2]
[359763788,1746310232201,-166.66,0.0001966,2]
[359763791,1746310232211,-2358.37003769,0.00019708,2]
[359763795,1746310232220,-2358.37003767,0.00019729,2]
[359763797,1746310232230,-2358.37003767,0.00019751,2]
[359763799,1746310232238,-698.21257697,0.00019756,2]
[359763801,1746310232247,-401.03708289,0.00019758,3]
[359763803,1746310232257,-5815.3398,0.00019758,2]
[359763805,1746310232268,-2358.37003767,0.00019772,2]
[359763807,1746310232278,-698.21257693,0.00019772,2]
[359763809,1746310232287,-698.21257693,0.00019788,2]
[359763811,1746310232297,-2358.37003767,0.00019793,2]
[359763813,1746310232305,-151.0,0.00019796,2]
[359763815,1746310232315,-668.65185757,0.00019796,2]
[359763817,1746310232324,-151.0,0.00019796,2]
[359763819,1746310232333,-1033.2878942,0.00019799,2]
[359763821,1746310232343,-698.21257693,0.00019804,2]
[359763823,1746310232353,-500.0,0.00019814,2]
[359763824,1746310232362,-500.0,0.00019814,2]
[359763826,1746310232372,-551.00977011,0.00019814,2]
[359763829,1746310232382,-627.16659267,0.00019814,2]
[359763830,1746310232391,-2358.37003767,0.00019815,2]
[359763832,1746310232400,-698.21257693,0.0001982,2]
[359763834,1746310232410,-2358.37003767,0.00019836,2]
[359763836,1746310232419,-698.21257693,0.00019836,2]
[359763838,1746310232429,-200.0,0.0001984,2]
[359763840,1746310232438,-698.21257693,0.00019852,2]
[359763842,1746310232447,-450.0,0.00019855,2]
[359763844,1746310232457,-450.0,0.00019855,2]
[359763846,1746310232467,-450.0,0.00019855,2]
[359763848,1746310232476,-450.0,0.00019855,2]
[359763850,1746310232486,-450.0,0.00019855,2]
[359763852,1746310232496,-4290.09,0.00019855,2]
[359763854,1746310232505,-450.0,0.00019855,2]
[359763856,1746310232514,-450.0,0.00019855,2]
[359763858,1746310232523,-450.0,0.00019855,2]
[359763860,1746310232533,-450.0,0.00019855,2]
[359763862,1746310232543,-1546.65,0.00019855,2]
[359763864,1746310232552,-450.0,0.00019855,2]
[359763866,1746310232562,-562.92,0.00019855,2]
[359763872,1746310232571,-3445.25,0.00019855,2]
[359763874,1746310232628,-487.52,0.00019855,2]
[359763876,1746310232638,-450.0,0.00019855,2]
[359763878,1746310232648,-450.0,0.00019855,2]
[359763880,1746310232657,-450.0,0.00019856,2]
[359763882,1746310232667,-450.0,0.00019856,2]
[359763884,1746310232676,-483.03297201,0.00019856,2]
[359763886,1746310232685,-520.36,0.00019856,2]
[359763888,1746310232695,-450.0,0.00019856,2]
[359763890,1746310232704,-450.0,0.00019856,2]
[359763892,1746310232713,-450.0,0.00019856,2]
[359763894,1746310232722,-450.0,0.00019856,2]
[359763896,1746310232732,-450.0,0.00019856,2]
[359763898,1746310232741,-450.0,0.00019856,2]
[359763900,1746310232750,-450.0,0.00019856,2]
[359763902,1746310232759,-610.34,0.00019856,2]
[359763903,1746310232769,-782.75,0.00019856,2]
[359763905,1746310232778,-450.0,0.00019856,2]
[359763907,1746310232787,-450.0,0.00019856,2]
[359763909,1746310232797,-450.0,0.00019856,2]
[359763911,1746310232809,-450.0,0.00019856,2]
[359763913,1746310232818,-450.0,0.00019856,2]
[359763915,1746310232827,-450.0,0.00019856,2]
[359763917,1746310232837,-450.0,0.00019856,2]
[359763919,1746310232846,-450.0,0.00019856,2]
[359763921,1746310232855,-450.0,0.00019856,2]
[359763923,1746310232865,-450.0,0.00019856,2]
[359763925,1746310232874,-450.0,0.00019856,2]
[359763927,1746310232884,-450.0,0.00019856,2]
[359763929,1746310232893,-450.0,0.00019856,2]
[359763931,1746310232903,-450.0,0.00019856,2]
[359763933,1746310232912,-450.0,0.00019856,2]
[359763935,1746310232921,-450.0,0.00019856,2]
[359763937,1746310232931,-450.0,0.00019856,2]
[359763939,1746310232940,-450.0,0.00019856,2]
[359763941,1746310232949,-450.0,0.00019856,2]
[359763943,1746310232958,-450.0,0.00019856,2]
[359763945,1746310232967,-450.0,0.00019856,2]
[359763947,1746310232977,-450.0,0.00019856,2]
[359763949,1746310232986,-450.0,0.00019856,2]
[359763951,1746310232995,-450.0,0.00019856,2]
[359763953,1746310233004,-450.0,0.00019856,2]
[359763954,1746310233013,-450.0,0.00019856,2]
[359763956,1746310233023,-450.0,0.00019856,2]
[359763958,1746310233032,-450.0,0.00019856,2]
[359763960,1746310233041,-450.0,0.00019856,2]
[359763962,1746310233051,-209.57597756,0.00019856,2]
[359763964,1746310233061,-2249.63,0.00019856,2]
[359763966,1746310233070,-463.24,0.00019856,2]
[359763968,1746310233079,-450.0,0.00019856,2]
[359763970,1746310233089,-452.15,0.00019856,2]
[359763972,1746310233099,-450.0,0.00019856,2]
[359763974,1746310233108,-499.98511216,0.00019856,2]
[359763976,1746310233118,-450.0,0.00019856,2]
[359763978,1746310233127,-450.0,0.00019856,2]
[359763980,1746310233137,-450.0,0.00019856,2]
[359763982,1746310233146,-450.0,0.00019856,2]
[359763984,1746310233156,-450.0,0.00019856,2]
[359763986,1746310233167,-450.0,0.00019856,2]
[359763988,1746310233179,-1139.9,0.00019856,2]
[359763990,1746310233189,-450.0,0.00019856,2]
[359763992,1746310233198,-1788.96,0.00019856,2]
[359763994,1746310233208,-450.0,0.00019856,2]
[359763996,1746310233217,-450.0,0.00019856,2]
[359763997,1746310233226,-450.0,0.00019856,2]
[359763999,1746310233235,-450.0,0.00019856,2]
[359764001,1746310233245,-450.0,0.00019856,2]
[359764003,1746310233255,-450.0,0.00019856,2]
[359764005,1746310233263,-460.84,0.00019856,2]
[359764007,1746310233273,-450.0,0.00019856,2]
[359764009,1746310233282,-4247.28,0.00019856,2]
[359764011,1746310233291,-606.15,0.00019856,2]
[359764013,1746310233300,-828.18,0.00019856,2]
[359764015,1746310233309,-450.0,0.00019856,2]
[359764017,1746310233319,-450.0,0.00019856,2]
[359764019,1746310233329,-605.63,0.00019856,2]
[359764021,1746310233338,-1351.62,0.00019856,2]
[359764023,1746310233347,-450.0,0.00019856,2]
[359764025,1746310233356,-450.0,0.00019856,2]
[359764027,1746310233367,-459.76,0.00019856,2]
[359764029,1746310233376,-5380.28,0.00019856,2]
[359764031,1746310233385,-450.0,0.00019856,2]
[359764033,1746310233395,-450.0,0.00019856,2]
[359764035,1746310233404,-450.0,0.00019856,2]
[359764037,1746310233414,-450.0,0.00019856,2]
[359764038,1746310233423,-3721.75,0.00019856,2]
[359764040,1746310233432,-450.0,0.00019856,2]
[359764043,1746310233442,-450.0,0.00019856,2]
[359764044,1746310233452,-450.0,0.00019856,2]
[359764047,1746310233462,-999.0,0.00019856,2]
[359764048,1746310233471,-492.34,0.00019856,2]
[359764051,1746310233481,-527.72,0.00019856,2]
[359764052,1746310233490,-450.0,0.00019856,2]
[359764054,1746310233499,-450.0,0.00019856,2]
[359764056,1746310233509,-517.27,0.00019856,2]
[359764058,1746310233518,-450.0,0.00019856,2]
[359764060,1746310233528,-2097.8,0.00019856,2]
[359764062,1746310233537,-450.0,0.00019856,2]
[359764065,1746310233547,-1906.66,0.00019856,2]
[359764066,1746310233556,-450.0,0.00019856,2]
[359764068,1746310233566,-450.0,0.00019856,2]
[359764070,1746310233576,-450.0,0.00019856,2]
[359764072,1746310233586,-532.72,0.00019856,2]
[359764075,1746310233595,-450.0,0.00019856,2]
[359764077,1746310233605,-450.0,0.00019856,2]
[359764078,1746310233614,-16951.03853079,0.00019856,2]
[359764081,1746310233629,-525.0,0.00019856,2]
[359764084,1746310233650,-452.27916836,0.00019856,2]
[359764086,1746310233662,-3485.21710907,0.00019856,2]
[359764088,1746310233674,-43505.11628205,0.00019856,2]
[359764091,1746310233685,-12219.59890973,0.00019856,2]
[359764093,1746310233695,-450.0,0.00019856,2]
[359764095,1746310233704,-450.0,0.00019856,2]
[359764096,1746310233714,-450.0,0.00019856,2]
[359764097,1746310233723,-925.51,0.00019856,2]
[359764098,1746310233732,-450.0,0.00019856,2]
[359764099,1746310233742,-997.05,0.00019856,2]
[359764100,1746310233751,-521.29,0.00019856,2]
[359764101,1746310233760,-450.0,0.00019856,2]
[359764102,1746310233769,-450.0,0.00019856,2]
[359764103,1746310233779,-674.97,0.00019856,2]
[359764104,1746310233788,-450.0,0.00019856,2]
[359764105,1746310233797,-450.0,0.00019856,2]
[359764106,1746310233810,-3330.99,0.00019856,2]
[359764107,1746310233819,-450.0,0.00019856,2]
[359764108,1746310233828,-450.0,0.00019856,2]
[359764109,1746310233837,-4469.80889582,0.00019856,2]
[359764110,1746310233863,-4245.1153792,0.00019856,2]
[359764113,1746310237883,-175.80092297,0.00019756,2]
[359764114,1746310237892,-714.14438088,0.00019856,2]
[359764115,1746310237903,-2200.21500561,0.00019856,2]
[359764116,1746310237996,-282.55999991,0.00019856,2]
[359764134,1746310240011,-175.80092294,0.00019785,2]
[359764135,1746310240022,-4495.57633858,0.00019856,2]
[359764136,1746310240032,-450.0,0.00019856,2]
[359764137,1746310240041,-544.27,0.00019856,2]
[359764138,1746310240051,-486.98,0.00019856,2]
[359764139,1746310240060,-450.0,0.00019856,2]
[359764140,1746310240070,-450.0,0.00019856,2]
[359764141,1746310240079,-813.46,0.00019856,2]
[359764142,1746310240088,-450.0,0.00019856,2]
[359764143,1746310240097,-450.0,0.00019856,2]
[359764144,1746310240106,-259.23398849,0.00019856,2]
[359764145,1746310240118,-190.76601151,0.00019856,2]
[359764146,1746310240127,-877.69,0.00019856,2]
[359764147,1746310240137,-450.0,0.00019856,2]
[359764148,1746310240146,-1392.5,0.00019856,2]
[359764149,1746310240156,-450.0,0.00019856,2]
[359764150,1746310240165,-450.0,0.00019856,2]
[359764151,1746310240174,-9981.96730958,0.00019856,2]
[359764152,1746310240185,-282.59269042,0.00019856,2]
[359764153,1746310240194,-519.33,0.00019856,2]
[359764154,1746310240203,-450.0,0.00019856,2]
[359764155,1746310240212,-450.0,0.00019856,2]
[359764156,1746310240221,-450.0,0.00019856,2]
[359764157,1746310240230,-1152.87,0.00019856,2]
[359764158,1746310240239,-450.0,0.00019856,2]
[359764159,1746310240248,-450.0,0.00019856,2]
[359764160,1746310240258,-450.0,0.00019856,2]
[359764161,1746310240267,-450.0,0.00019856,2]
[359764162,1746310240276,-727.54,0.00019856,2]
[359764163,1746310240286,-453.98,0.00019856,2]
[359764164,1746310240294,-766.44,0.00019856,2]
[359764165,1746310240303,-10923.61730958,0.00019856,2]
[359764166,1746310240314,-4378.73902156,0.00019856,2]
[359764167,1746310240325,-3682.8819354,0.00019856,2]
[359764168,1746310240336,-20376.5625003,0.00019856,2]
[359764169,1746310240351,-264.28199997,0.00019856,2]
[359764205,1746310240767,-34181.15723319,0.00019856,2]
[359764207,1746310240776,-450.0,0.00019856,2]
[359764209,1746310240785,-450.0,0.00019856,2]
[359764211,1746310240795,-535.47356475,0.00019856,2]
[359764213,1746310240805,-766.56,0.00019856,2]
[359764215,1746310240815,-450.0,0.00019856,2]
[359764217,1746310240825,-450.0,0.00019856,2]
[359764219,1746310240834,-450.0,0.00019856,2]
[359764221,1746310240843,-450.0,0.00019856,2]
[359764223,1746310240854,-450.0,0.00019856,2]
[359764225,1746310240864,-450.0,0.00019856,2]
[359764227,1746310240873,-584.7,0.00019856,2]
[359764229,1746310240883,-450.0,0.00019856,2]
[359764231,1746310240892,-450.0,0.00019856,2]
[359764233,1746310240901,-450.0,0.00019856,2]
[359764235,1746310240911,-450.0,0.00019856,2]
[359764237,1746310240921,-456.64,0.00019856,2]
[359764238,1746310240931,-450.0,0.00019856,2]
[359764240,1746310240941,-450.0,0.00019856,2]
[359764242,1746310240950,-450.0,0.00019856,2]
[359764244,1746310240959,-450.0,0.00019856,2]
[359764246,1746310240968,-511.44,0.00019856,2]
[359764248,1746310240979,-450.0,0.00019856,2]
[359764250,1746310240988,-450.0,0.00019856,2]
[359764254,1746310241126,-502.53,0.00019856,2]
[359764257,1746310241148,-450.0,0.00019856,2]
[359764259,1746310241157,-450.0,0.00019856,2]
[359764261,1746310241167,-450.0,0.00019856,2]
[359764263,1746310241177,-450.0,0.00019856,2]
[359764265,1746310241186,-727.44,0.00019856,2]
[359764266,1746310241195,-450.0,0.00019856,2]
[359764268,1746310241204,-450.0,0.00019856,2]
[359764270,1746310241213,-450.0,0.00019856,2]
[359764272,1746310241223,-450.0,0.00019856,2]
[359764274,1746310241232,-450.0,0.00019856,2]
[359764276,1746310241242,-3087.47,0.00019856,2]
[359764278,1746310241252,-3188.62,0.00019856,2]
[359764280,1746310241261,-450.0,0.00019856,2]
[359764282,1746310241271,-450.0,0.00019856,2]
[359764284,1746310241280,-450.0,0.00019856,2]
[359764286,1746310241289,-515.78,0.00019856,2]
[359764288,1746310241299,-450.0,0.00019856,2]
[359764290,1746310241309,-450.0,0.00019856,2]
[359764292,1746310241319,-1471.86,0.00019856,2]
[359764294,1746310241328,-450.0,0.00019856,2]
[359764296,1746310241338,-364.23013526,0.00019856,2]
[359764298,1746310241347,-450.0,0.00019856,2]
[359764300,1746310241359,-502.47,0.00019856,2]
[359764302,1746310241371,-450.0,0.00019856,2]
[359764304,1746310241381,-489.35,0.00019856,2]
[359764306,1746310241391,-450.0,0.00019856,2]
[359764308,1746310241401,-1293.88,0.00019856,2]
[359764310,1746310241412,-450.0,0.00019856,2]
[359764312,1746310241421,-450.0,0.00019856,2]
[359764314,1746310241431,-673.46,0.00019856,2]
[359764316,1746310241441,-450.0,0.00019856,2]
[359764318,1746310241450,-450.0,0.00019856,2]
[359764320,1746310241459,-450.0,0.00019856,2]
[359764322,1746310241469,-464.14,0.00019856,2]
[359764324,1746310241478,-750.02,0.00019856,2]
[359764326,1746310241488,-738.5,0.00019856,2]
[359764328,1746310241497,-450.0,0.00019856,2]
[359764330,1746310241506,-1714.42,0.00019856,2]
[359764332,1746310241516,-450.0,0.00019856,2]
[359764334,1746310241526,-450.0,0.00019857,2]
[359764336,1746310241536,-154.12705526,0.00019857,2]
[359764338,1746310241545,-488.42,0.00019857,2]
[359764340,1746310241555,-519.24,0.00019857,2]
[359764342,1746310241565,-485.81,0.00019857,2]
[359764344,1746310241576,-539.55,0.00019857,2]
[359764346,1746310241587,-450.0,0.00019857,2]
[359764348,1746310241596,-744.98,0.00019857,2]
[359764350,1746310241606,-450.0,0.00019857,2]
[359764352,1746310241616,-724.25,0.00019857,2]
[359764354,1746310241626,-653.43,0.00019857,2]
[359764356,1746310241635,-450.0,0.00019857,2]
[359764358,1746310241645,-932.74,0.00019857,2]
[359764360,1746310241655,-450.0,0.00019857,2]
[359764362,1746310241664,-537.21,0.00019857,2]
[359764364,1746310241674,-450.0,0.00019857,2]
[359764366,1746310241684,-450.0,0.00019857,2]
[359764368,1746310241693,-1063.12,0.00019857,2]
[359764370,1746310241703,-450.0,0.00019857,2]
[359764372,1746310241712,-450.0,0.00019857,2]
[359764374,1746310241722,-450.0,0.00019857,2]
[359764376,1746310241732,-467.57,0.00019857,2]
[359764378,1746310241742,-450.0,0.00019857,2]
[359764380,1746310241752,-523.18256869,0.00019857,2]
[359764382,1746310241761,-450.0,0.00019857,2]
[359764384,1746310241771,-628.78,0.00019857,2]
[359764385,1746310241780,-1828.17,0.00019857,2]
[359764388,1746310241790,-496.32,0.00019857,2]
[359764389,1746310241799,-805.64,0.00019857,2]
[359764391,1746310241810,-450.0,0.00019857,2]
[359764393,1746310241819,-450.0,0.00019857,2]
[359764395,1746310241828,-1842.22,0.00019857,2]
[359764397,1746310241837,-484.18,0.00019857,2]
[359764399,1746310241847,-450.0,0.00019857,2]
[359764401,1746310241856,-450.0,0.00019857,2]
[359764403,1746310241866,-450.0,0.00019857,2]
[359764405,1746310241876,-2358.37003767,0.00019857,2]
[359764407,1746310241886,-450.0,0.00019858,2]
[359764409,1746310241896,-450.0,0.00019859,2]
[359764411,1746310241905,-580.24640432,0.00019859,2]
[359764413,1746310241915,-450.0,0.00019859,2]
[359764415,1746310241925,-589.08,0.00019859,2]
[359764417,1746310241934,-450.0,0.00019859,2]
[359764419,1746310241943,-450.0,0.00019859,2]
[359764421,1746310241953,-450.0,0.00019859,2]
[359764423,1746310241963,-450.0,0.00019859,2]
[359764425,1746310241972,-774.44,0.00019859,2]
[359764427,1746310241981,-450.0,0.00019859,2]
[359764429,1746310241990,-450.0,0.00019859,2]
[359764431,1746310242000,-450.0,0.00019859,2]
[359764433,1746310242010,-450.0,0.00019859,2]
[359764435,1746310242019,-628.4,0.00019859,2]
[359764437,1746310242029,-450.0,0.00019859,2]
[359764439,1746310242038,-482.22,0.00019859,2]
[359764441,1746310242048,-450.0,0.00019859,2]
[359764443,1746310242057,-450.0,0.00019859,2]
[359764445,1746310242067,-450.0,0.00019859,2]
[359764447,1746310242076,-450.0,0.00019859,2]
[359764449,1746310242086,-450.0,0.00019859,2]
[359764451,1746310242095,-1792.25,0.00019859,2]
[359764453,1746310242104,-450.0,0.00019859,2]
[359764455,1746310242114,-450.0,0.00019859,2]
[359764457,1746310242123,-450.0,0.00019859,2]
[359764459,1746310242132,-1095.82,0.00019859,2]
[359764461,1746310242142,-450.0,0.00019859,2]
[359764463,1746310242152,-450.0,0.00019859,2]
[359764465,1746310242161,-939.8,0.00019859,2]
[359764467,1746310242170,-450.0,0.00019859,2]
[359764469,1746310242180,-450.0,0.00019859,2]
[359764471,1746310242190,-450.0,0.00019859,2]
[359764473,1746310242199,-450.0,0.00019859,2]
[359764475,1746310242209,-450.0,0.00019859,2]
[359764477,1746310242219,-500.0,0.00019863,2]
[359764479,1746310242228,-150.0,0.00019865,2]
[359764481,1746310242238,-150.0,0.00019865,2]
[359764483,1746310242247,-500.0,0.00019865,2]
[359764485,1746310242256,-500.0,0.00019865,2]
[359764487,1746310242266,-150.0,0.00019865,2]
[359764489,1746310242275,-500.0,0.00019865,2]
[359764491,1746310242285,-150.0,0.00019865,2]
[359764493,1746310242295,-500.0,0.00019865,2]
[359764495,1746310242304,-150.0,0.00019865,2]
[359764497,1746310242313,-150.0,0.00019865,2]
[359764499,1746310242323,-698.21257693,0.00019868,2]
[359764501,1746310242333,-215.30011655,0.00019873,2]
[359764503,1746310242342,-500.0,0.00019873,2]
[359764505,1746310242351,-502.44539025,0.00019873,2]
[359764507,1746310242362,-506.12804986,0.00019873,2]
[359764509,1746310242371,-156.32997402,0.00019873,2]
[359764511,1746310242382,-500.0,0.00019873,2]
[359764513,1746310242391,-500.0,0.00019873,2]
[359764515,1746310242401,-505.80008738,0.00019873,2]
[359764517,1746310242411,-500.0,0.00019873,2]
[359764519,1746310242420,-500.0,0.00019873,2]
[359764521,1746310242430,-502.81057893,0.00019873,2]
[359764523,1746310242440,-207.79775041,0.00019873,2]
[359764525,1746310242450,-495.25608949,0.00019873,2]
[359764527,1746310242459,-500.90438284,0.00019873,2]
[359764529,1746310242468,-500.0,0.00019873,2]
[359764531,1746310242478,-157.30507306,0.00019873,2]
[359764533,1746310242488,-500.0,0.00019873,2]
[359764535,1746310242497,-161.1858119,0.00019873,2]
[359764537,1746310242507,-553.0106179,0.00019873,2]
[359764539,1746310242517,-2358.37003767,0.00019879,2]
[359764541,1746310242526,-698.21257693,0.00019884,2]
[359764543,1746310242536,-271.05396287,0.00019898,2]
[359764545,1746310242545,-152.30838157,0.000199,2]
[359764547,1746310242555,-1308.79,0.000199,2]
[359764549,1746310242565,-456.22,0.000199,2]
[359764551,1746310242575,-436.16314682,0.000199,2]
[359764553,1746310242584,-801.78,0.000199,2]
[359764555,1746310242594,-801.78,0.000199,2]
[359764557,1746310242603,-300.0,0.000199,2]
[359764559,1746310242614,-2358.37003767,0.000199,2]
[359764561,1746310242624,-352.11,0.000199,2]
[359764563,1746310242634,-801.78,0.000199,2]
[359764565,1746310242643,-451.54,0.000199,2]
[359764568,1746310242653,-150.0,0.000199,2]
[359764571,1746310242663,-352.11,0.000199,2]
[359764573,1746310242672,-451.54,0.000199,2]
[359764575,1746310242681,-6009.34962515,0.000199,2]
[359764577,1746310242691,-451.54,0.000199,2]
[359764579,1746310242700,-162.26,0.000199,2]
[359764581,1746310242710,-801.78,0.000199,2]
[359764583,1746310242719,-801.78,0.000199,2]
[359764585,1746310242729,-698.21257693,0.000199,2]
[359764587,1746310242738,-282.0306047,0.000199,3]
[359764589,1746310242747,-29244.19459561,0.000199,2]
[359764591,1746310242757,-1154.02,0.000199,2]
[359764593,1746310242767,-801.78,0.000199,2]
[359764595,1746310242776,-456.22,0.000199,2]
[359764597,1746310242785,-1602.52,0.000199,2]
[359764599,1746310242796,-4468.75865728,0.000199,2]
[359764601,1746310242809,-7113.8200156,0.000199,2]
[359764603,1746310242819,-924.0,0.00019931,2]
[359764605,1746310242828,-1299.0,0.00019931,2]
[359764607,1746310242837,-816.0,0.00019931,2]
[359764609,1746310242847,-1314.889,0.00019931,2]
[359764611,1746310242857,-1040.566,0.00019931,2]
[359764613,1746310242866,-550.0,0.00019931,2]
[359764615,1746310242875,-2072.0,0.00019931,2]
[359764617,1746310242887,-1451.0,0.00019931,2]
[359764619,1746310242897,-649.021,0.00019931,2]
[359764621,1746310242906,-357.712,0.00019931,2]
[359764623,1746310242915,-1140.0,0.00019931,2]
[359764625,1746310242925,-877.0,0.00019948,2]
[359764627,1746310242934,-279.546,0.00019948,2]
[359764629,1746310242945,-270.225,0.00019948,2]
[359764631,1746310242955,-6756.0,0.00019948,2]
[359764633,1746310242964,-2158.0,0.00019948,2]
[359764635,1746310242974,-4008.0,0.00019948,2]
[359764637,1746310242983,-878.0,0.00019948,2]
[359764639,1746310242993,-2431.916,0.00019959,2]
[359764641,1746310243003,-168.088,0.00019959,2]
[359764643,1746310243012,-500.0,0.00019973,2]
[359764645,1746310243022,-4648.0,0.00019973,2]
[359764647,1746310243031,-500.0,0.00019973,2]
[359764650,1746310243040,-500.0,0.00019973,2]
[359764653,1746310243050,-506.72470226,0.00019973,2]